[Event "FTX Road to Miami Prelims 2022"]
[Site "Online"]
[Date "2022.07.04"]
[Round "6.4"]
[White "Rapport, Richard"]
[Black "Giri, Anish"]
[Result "1/2-1/2"]
[ECO "B31"]
[WhiteElo "2764"]
[BlackElo "2760"]
[Annotator "ChessBase"]
[PlyCount "140"]
[EventDate "2022.07.10"]
[EventType "tourn"]
[EventCountry "NET"]
[SourceTitle "playchess.com"]
[Source "ChessBase"]
[SourceQuality "1"]
[TimeControl "40/5400+30:1800+30"]

1. e4 {[%emt 1:15:40]} c5 {[%emt 1:15:40]} 2. Na3 {[%emt 0:00:28]} Nc6 {[%emt 0:00:24]} 3. Bb5 {[%emt 0:00:23]} g6 {[%emt 0:00:31]} 4. Ne2 {[%emt 0:00:31]} Bg7 {[%emt 0:00:26]} 5. O-O {[%emt 0:00:23]} Nf6 {[%emt 0:00:30]} 6. d3 {[%emt 0:00:25]} O-O {[%emt 0:00:26]} 7. c4 {[%emt 0:00:53]} d6 {[%emt 0:00:30]} 8. Nc2 {[%emt 0:00:26]} Bd7 {[%emt 0:00:32]} 9. a4 {[%emt 0:00:42]} a6 {[%emt 0:01:45]} 10. Bxc6 {[%emt 0:00:23]} Bxc6 {[%emt 0:00:20]} 11. a5 {[%emt 0:00:25]} b5 {[%emt 0:00:30]} 12. axb6 {[%emt 0:00:40]} Qxb6 {[%emt 0:00:21]} 13. Nc3 {[%emt 0:00:45]} Nd7 {[%emt 0:01:03]} 14. Ra2 {[%emt 0:01:24]} Rfe8 {[%emt 0:00:42]} 15. f4 {[%emt 0:00:33]} e6 {[%emt 0:00:24]} 16. Bd2 {[%emt 0:01:16]} Qb3 {[%emt 0:01:31]} 17. Ne3 {[%emt 0:00:32]} Qxd1 {[%emt 0:00:30]} 18. Rxd1 {[%emt 0:00:59]} Reb8 {[%emt 0:01:39]} 19. Rda1 {[%emt 0:00:30]} f5 {[%emt 0:04:18]} 20. exf5 {[%emt 0:01:28]} gxf5 {[%emt 0:00:21]} 21. Kf1 {[%emt 0:00:28]} Bb7 {[%emt 0:00:36]} 22. Ke2 {[%emt 0:00:49]} Kf7 {[%emt 0:00:22]} 23. Ncd1 {[%emt 0:00:31]} h5 {[%emt 0:01:18]} 24. Nf2 {[%emt 0:00:41]} Rg8 {[%emt 0:00:52]} 25. Nh3 {[%emt 0:00:48]} Bf6 {[%emt 0:00:50]} 26. Rg1 {[%emt 0:00:49]} h4 {[%emt 0:02:03]} 27. Bc3 {[%emt 0:00:27]} Be7 {[%emt 0:01:01]} 28. Raa1 {[%emt 0:00:54]} Rg6 {[%emt 0:00:30]} 29. g4 {[%emt 0:00:31]} hxg3 {[%emt 0:00:30]} 30. Rxg3 {[%emt 0:00:23]} Rag8 {[%emt 0:01:56]} 31. Rag1 {[%emt 0:00:30]} Bh4 {[%emt 0:00:48]} 32. Rxg6 {[%emt 0:03:10]} Rxg6 {[%emt 0:00:20]} 33. Rxg6 {[%emt 0:01:20]} Kxg6 {[%emt 0:00:22]} 34. Ba5 {[%emt 0:00:20]} Be7 {[%emt 0:02:01]} 35. Bc7 {[%emt 0:00:23]} Nf6 {[%emt 0:00:37]} 36. Ng5 {[%emt 0:00:29]} Bc8 {[%emt 0:00:42]} 37. Nf3 {[%emt 0:00:30]} Nh5 {[%emt 0:00:38]} 38. Ng2 {[%emt 0:00:21]} Bb7 {[%emt 0:00:26]} 39. Ke3 {[%emt 0:00:30]} Kf7 {[%emt 0:00:27]} 40. Ngh4 {[%emt 0:00:36]} Kg7 {[%emt 0:01:28]} 41. Ng5 {[%emt 0:30:55]} Bc8 {[%emt 0:30:22]} 42. Nhf3 {[%emt 0:00:27]} Kg6 {[%emt 0:00:23]} 43. Nh4+ {[%emt 0:01:29]} Kg7 {[%emt 0:00:22]} 44. Nhf3 {[%emt 0:00:28]} Nf6 {[%emt 0:00:21]} 45. h3 {[%emt 0:01:05]} Kg6 {[%emt 0:00:21]} 46. Ba5 {[%emt 0:00:58]} e5 {[%emt 0:01:11]} 47. fxe5 {[%emt 0:01:58]} dxe5 {[%emt 0:00:21]} 48. Bc3 {[%emt 0:00:22]} Nd7 {[%emt 0:00:32]} 49. h4 {[%emt 0:00:57]} Bf6 {[%emt 0:00:38]} 50. h5+ {[%emt 0:00:27]} Kxh5 {[%emt 0:00:21]} 51. Nf7 {[%emt 0:00:21]} f4+ {[%emt 0:00:37]} 52. Kf2 {[%emt 0:00:48]} e4 {[%emt 0:00:24]} 53. dxe4 {[%emt 0:00:20]} Bxc3 {[%emt 0:00:23]} 54. bxc3 {[%emt 0:00:20]} Nb6 {[%emt 0:00:42]} 55. Nd6 {[%emt 0:00:38]} Be6 {[%emt 0:00:22]} 56. Nd2 {[%emt 0:00:39]} Kg4 {[%emt 0:00:26]} 57. Nb7 {[%emt 0:01:22]} Bxc4 {[%emt 0:00:39]} 58. Nxc5 {[%emt 0:00:44]} a5 {[%emt 0:00:23]} 59. Nf3 {[%emt 0:00:21]} Bb5 {[%emt 0:00:44]} 60. Ne5+ {[%emt 0:00:57]} Kg5 {[%emt 0:00:22]} 61. Nf3+ {[%emt 0:00:37]} Kf6 {[%emt 0:00:26]} 62. e5+ {[%emt 0:00:22]} Ke7 {[%emt 0:00:21]} 63. Nd4 {[%emt 0:00:22]} Be8 {[%emt 0:00:26]} 64. Nf5+ {[%emt 0:00:34]} Kf8 {[%emt 0:00:28]} 65. Ne6+ {[%emt 0:00:51]} Kf7 {[%emt 0:00:21]} 66. Nxf4 {[%emt 0:00:23]} a4 {[%emt 0:00:21]} 67. Nd6+ {[%emt 0:00:47]} Ke7 {[%emt 0:00:23]} 68. Nf5+ {[%emt 0:00:43]} Kf7 {[%emt 0:00:36]} 69. Nd6+ {[%emt 0:00:22]} Ke7 {[%emt 0:00:20]} 70. Nf5+ {[%emt 0:00:21]} Kf7 {[%emt 0:00:21]} 1/2-1/2

[Event "FTX Road to Miami Prelims 2022"]
[Site "Online"]
[Date "2022.07.04"]
[Round "6.5"]
[White "Wojtaszek, Radoslaw"]
[Black "Ju, Wenjun"]
[Result "1-0"]
[ECO "E04"]
[WhiteElo "2708"]
[BlackElo "2560"]
[Annotator "ChessBase"]
[PlyCount "87"]
[EventDate "2022.07.10"]
[EventType "tourn"]
[EventCountry "NET"]
[SourceTitle "playchess.com"]
[Source "ChessBase"]
[SourceQuality "1"]
[TimeControl "40/5400+30:1800+30"]

1. c4 {[%emt 1:15:40]} Nf6 {[%emt 1:15:40]} 2. g3 {[%emt 0:00:22]} e6 {[%emt 0:00:26]} 3. Bg2 {[%emt 0:00:21]} d5 {[%emt 0:00:21]} 4. d4 {[%emt 0:00:21]} dxc4 {[%emt 0:00:37]} 5. Nf3 {[%emt 0:00:22]} c5 {[%emt 0:00:34]} 6. O-O {[%emt 0:00:27]} Nc6 {[%emt 0:00:22]} 7. Ne5 {[%emt 0:01:10]} Bd7 {[%emt 0:00:28]} 8. Nxc4 {[%emt 0:00:22]} cxd4 {[%emt 0:00:49]} 9. Bf4 {[%emt 0:00:21]} Be7 {[%emt 0:00:59]} 10. Nd6+ {[%emt 0:00:22]} Kf8 {[%emt 0:00:29]} 11. Nxb7 {[%emt 0:00:23]} Qb6 {[%emt 0:00:25]} 12. Nd6 {[%emt 0:00:37]} Qc5 {[%emt 0:01:31]} 13. Qb3 {[%emt 0:03:51]} Bxd6 {[%emt 0:02:03]} 14. Rc1 {[%emt 0:00:23]} Qb4 {[%emt 0:00:23]} 15. Qxb4 {[%emt 0:00:21]} Bxb4 {[%emt 0:00:22]} 16. Bxc6 {[%emt 0:00:22]} Rc8 {[%emt 0:01:13]} 17. Bxd7 {[%emt 0:00:22]} Rxc1+ {[%emt 0:00:22]} 18. Bxc1 {[%emt 0:00:20]} Nxd7 {[%emt 0:00:21]} 19. Bd2 {[%emt 0:00:21]} Bxd2 {[%emt 0:03:10]} 20. Nxd2 {[%emt 0:00:22]} Ke7 {[%emt 0:00:20]} 21. Rc1 {[%emt 0:00:49]} Rb8 {[%emt 0:01:18]} 22. b3 {[%emt 0:01:20]} Rb7 {[%emt 0:00:38]} 23. f4 {[%emt 0:00:31]} f6 {[%emt 0:00:23]} 24. Kf2 {[%emt 0:00:42]} e5 {[%emt 0:02:16]} 25. Rc6 {[%emt 0:00:30]} Nb8 {[%emt 0:01:40]} 26. Rc8 {[%emt 0:01:41]} Kd7 {[%emt 0:01:23]} 27. Rg8 {[%emt 0:00:59]} Ke6 {[%emt 0:00:21]} 28. fxe5 {[%emt 0:02:51]} fxe5 {[%emt 0:00:23]} 29. Re8+ {[%emt 0:00:21]} Kd5 {[%emt 0:00:54]} 30. e4+ {[%emt 0:00:22]} dxe3+ {[%emt 0:00:40]} 31. Kxe3 {[%emt 0:00:20]} Nc6 {[%emt 0:00:55]} 32. Ne4 {[%emt 0:00:35]} h6 {[%emt 0:01:35]} 33. Rc8 {[%emt 0:01:59]} Rd7 {[%emt 0:03:16]} 34. Nc3+ {[%emt 0:02:47]} Kc5 {[%emt 0:00:21]} 35. b4+ {[%emt 0:01:43]} Kb6 {[%emt 0:00:23]} 36. a3 {[%emt 0:00:23]} Kb7 {[%emt 0:00:41]} 37. Re8 {[%emt 0:00:22]} Nd4 {[%emt 0:00:39]} 38. Na4 {[%emt 0:00:36]} Nf5+ {[%emt 0:00:26]} 39. Kf3 {[%emt 0:00:48]} Kc6 {[%emt 0:00:37]} 40. Rxe5 {[%emt 0:00:42]} Rd3+ {[%emt 0:00:27]} 41. Kf4 {[%emt 0:31:50]} Rxa3 {[%emt 0:30:21]} 42. Rc5+ {[%emt 0:00:22]} Kb7 {[%emt 0:00:44]} 43. Ra5 {[%emt 0:00:26]} Kc6 {[%emt 0:00:35]} 44. Kxf5 {[%emt 0:00:23]} 1-0

[Event "FTX Road to Miami Prelims 2022"]
[Site "Online"]
[Date "2022.07.04"]
[Round "6.6"]
[White "Shankland, Sam"]
[Black "Erigaisi Arjun"]
[Result "0-1"]
[ECO "B34"]
[WhiteElo "2720"]
[BlackElo "2689"]
[Annotator "ChessBase"]
[PlyCount "98"]
[EventDate "2022.07.10"]
[EventType "tourn"]
[EventCountry "NET"]
[SourceTitle "playchess.com"]
[Source "ChessBase"]
[SourceQuality "1"]
[TimeControl "40/5400+30:1800+30"]

1. e4 {[%emt 1:15:40]} c5 {[%emt 1:15:40]} 2. Nf3 {[%emt 0:00:22]} d6 {[%emt 0:00:22]} 3. d4 {[%emt 0:00:21]} cxd4 {[%emt 0:00:20]} 4. Nxd4 {[%emt 0:00:21]} Nf6 {[%emt 0:00:21]} 5. Nc3 {[%emt 0:00:21]} g6 {[%emt 0:00:21]} 6. Be3 {[%emt 0:00:24]} Bg7 {[%emt 0:00:21]} 7. f3 {[%emt 0:00:22]} O-O {[%emt 0:00:21]} 8. Qd2 {[%emt 0:00:28]} Nc6 {[%emt 0:00:20]} 9. Be2 {[%emt 0:00:35]} d5 {[%emt 0:01:04]} 10. Nxc6 {[%emt 0:02:22]} bxc6 {[%emt 0:00:20]} 11. e5 {[%emt 0:00:21]} Nd7 {[%emt 0:01:18]} 12. f4 {[%emt 0:00:22]} e6 {[%emt 0:00:21]} 13. O-O {[%emt 0:00:38]} c5 {[%emt 0:01:58]} 14. Na4 {[%emt 0:01:02]} d4 {[%emt 0:00:24]} 15. Bf2 {[%emt 0:00:22]} Bb7 {[%emt 0:00:21]} 16. c3 {[%emt 0:01:42]} Bc6 {[%emt 0:01:47]} 17. b3 {[%emt 0:00:42]} Bxa4 {[%emt 0:05:23]} 18. bxa4 {[%emt 0:00:22]} dxc3 {[%emt 0:00:20]} 19. Qxc3 {[%emt 0:00:31]} Nb6 {[%emt 0:00:21]} 20. Bf3 {[%emt 0:01:48]} Rc8 {[%emt 0:00:30]} 21. Rfd1 {[%emt 0:00:32]} Nxa4 {[%emt 0:02:13]} 22. Qa3 {[%emt 0:00:51]} Qe8 {[%emt 0:00:23]} 23. Rac1 {[%emt 0:01:19]} Qb5 {[%emt 0:01:17]} 24. Qb3 {[%emt 0:01:10]} Qb4 {[%emt 0:00:23]} 25. Rd7 {[%emt 0:02:07]} Nb6 {[%emt 0:01:13]} 26. Qxb4 {[%emt 0:00:49]} cxb4 {[%emt 0:00:20]} 27. Rdc7 {[%emt 0:00:21]} Rxc7 {[%emt 0:01:07]} 28. Rxc7 {[%emt 0:00:23]} Nd5 {[%emt 0:01:03]} 29. Bxd5 {[%emt 0:00:40]} exd5 {[%emt 0:00:20]} 30. Bc5 {[%emt 0:00:56]} Rb8 {[%emt 0:00:28]} 31. Bxa7 {[%emt 0:01:08]} Ra8 {[%emt 0:01:12]} 32. Kf2 {[%emt 0:00:32]} f6 {[%emt 0:01:05]} 33. e6 {[%emt 0:00:41]} f5 {[%emt 0:00:22]} 34. Ke3 {[%emt 0:01:03]} Bf6 {[%emt 0:00:27]} 35. e7 {[%emt 0:00:50]} Kf7 {[%emt 0:00:33]} 36. Kd3 {[%emt 0:00:31]} Ke6 {[%emt 0:01:08]} 37. Bc5 {[%emt 0:01:26]} Ra3+ {[%emt 0:00:23]} 38. Kc2 {[%emt 0:00:32]} Rxa2+ {[%emt 0:00:20]} 39. Kb3 {[%emt 0:00:21]} Ra8 {[%emt 0:00:48]} 40. Kxb4 {[%emt 0:02:10]} Re8 {[%emt 0:01:04]} 41. Rc6+ {[%emt 0:30:50]} Kf7 {[%emt 0:30:22]} 42. Bd6 {[%emt 0:01:00]} Bxe7 {[%emt 0:00:30]} 43. Kc5 {[%emt 0:00:21]} Bxd6+ {[%emt 0:00:35]} 44. Rxd6 {[%emt 0:00:21]} Re2 {[%emt 0:00:30]} 45. g3 {[%emt 0:01:08]} Rxh2 {[%emt 0:00:28]} 46. Rxd5 {[%emt 0:00:27]} Rc2+ {[%emt 0:00:32]} 47. Kb4 {[%emt 0:00:29]} Kg7 {[%emt 0:00:30]} 48. Kb3 {[%emt 0:00:45]} Rg2 {[%emt 0:00:23]} 49. Rd3 {[%emt 0:00:26]} Kh6 {[%emt 0:00:22]} 0-1

[Event "FTX Road to Miami Prelims 2022"]
[Site "Online"]
[Date "2022.07.04"]
[Round "6.7"]
[White "Wei, Yi"]
[Black "Mamedyarov, Shakhriyar"]
[Result "1-0"]
[ECO "D27"]
[WhiteElo "2727"]
[BlackElo "2759"]
[Annotator "ChessBase"]
[PlyCount "53"]
[EventDate "2022.07.10"]
[EventType "tourn"]
[EventCountry "NET"]
[SourceTitle "playchess.com"]
[Source "ChessBase"]
[SourceQuality "1"]
[TimeControl "40/5400+30:1800+30"]

1. d4 {[%emt 1:15:40]} d5 {[%emt 1:15:40]} 2. c4 {[%emt 0:00:28]} c6 {[%emt 0:00:22]} 3. Nf3 {[%emt 0:00:37]} Nf6 {[%emt 0:00:23]} 4. e3 {[%emt 0:00:49]} e6 {[%emt 0:00:24]} 5. Bd3 {[%emt 0:00:32]} c5 {[%emt 0:00:23]} 6. O-O {[%emt 0:01:32]} dxc4 {[%emt 0:00:30]} 7. Bxc4 {[%emt 0:00:22]} a6 {[%emt 0:00:20]} 8. Nbd2 {[%emt 0:01:07]} cxd4 {[%emt 0:00:53]} 9. Nxd4 {[%emt 0:00:22]} Be7 {[%emt 0:00:33]} 10. b3 {[%emt 0:01:39]} O-O {[%emt 0:00:28]} 11. Bb2 {[%emt 0:00:23]} b5 {[%emt 0:00:30]} 12. Be2 {[%emt 0:00:25]} Bb7 {[%emt 0:00:23]} 13. Bf3 {[%emt 0:02:25]} Qd7 {[%emt 0:00:23]} 14. a4 {[%emt 0:01:07]} bxa4 {[%emt 0:04:26]} 15. Nc4 {[%emt 0:01:18]} Ra7 {[%emt 0:01:08]} 16. Rxa4 {[%emt 0:00:41]} Bxf3 {[%emt 0:00:36]} 17. Qxf3 {[%emt 0:00:22]} Qd5 {[%emt 0:00:37]} 18. Qe2 {[%emt 0:02:19]} Nbd7 {[%emt 0:03:01]} 19. Rfa1 {[%emt 0:01:45]} Nc5 {[%emt 0:02:58]} 20. Ra5 {[%emt 0:00:23]} Bd8 {[%emt 0:00:22]} 21. b4 {[%emt 0:01:01]} Bxa5 {[%emt 0:00:51]} 22. Rxa5 {[%emt 0:00:21]} Qe4 {[%emt 0:00:22]} 23. bxc5 {[%emt 0:01:08]} Rb8 {[%emt 0:00:30]} 24. h3 {[%emt 0:00:58]} Nd5 {[%emt 0:00:25]} 25. Ra1 {[%emt 0:01:20]} e5 {[%emt 0:00:34]} 26. f3 {[%emt 0:01:03]} Qh4 {[%emt 0:00:34]} 27. Nc6 {[%emt 0:00:27]} 1-0

[Event "FTX Road to Miami Prelims 2022"]
[Site "Online"]
[Date "2022.07.04"]
[Round "6.8"]
[White "Dominguez Perez, Leinier"]
[Black "Duda, Jan-Krzysztof"]
[Result "1/2-1/2"]
[ECO "B12"]
[WhiteElo "2754"]
[BlackElo "2750"]
[Annotator "ChessBase"]
[PlyCount "127"]
[EventDate "2022.07.10"]
[EventType "tourn"]
[EventCountry "NET"]
[SourceTitle "playchess.com"]
[Source "ChessBase"]
[SourceQuality "1"]
[TimeControl "40/5400+30:1800+30"]

1. e4 {[%emt 1:15:40]} c6 {[%emt 1:15:40]} 2. d4 {[%emt 0:00:22]} d5 {[%emt 0:00:22]} 3. e5 {[%emt 0:00:21]} Bf5 {[%emt 0:00:22]} 4. Nd2 {[%emt 0:00:22]} e6 {[%emt 0:00:21]} 5. Nb3 {[%emt 0:00:21]} c5 {[%emt 0:00:22]} 6. Bb5+ {[%emt 0:00:44]} Nc6 {[%emt 0:00:24]} 7. dxc5 {[%emt 0:00:23]} Bxc5 {[%emt 0:00:26]} 8. Bxc6+ {[%emt 0:00:22]} bxc6 {[%emt 0:00:21]} 9. Nxc5 {[%emt 0:00:21]} Qa5+ {[%emt 0:00:21]} 10. c3 {[%emt 0:00:20]} Qxc5 {[%emt 0:00:22]} 11. Ne2 {[%emt 0:00:23]} Ne7 {[%emt 0:00:50]} 12. O-O {[%emt 0:00:28]} Qb6 {[%emt 0:01:10]} 13. b4 {[%emt 0:00:34]} Qc7 {[%emt 0:00:49]} 14. Be3 {[%emt 0:01:10]} Qxe5 {[%emt 0:02:54]} 15. Bc5 {[%emt 0:00:24]} Qc7 {[%emt 0:02:23]} 16. Nd4 {[%emt 0:00:24]} Bg6 {[%emt 0:00:25]} 17. a4 {[%emt 0:07:15]} Rc8 {[%emt 0:03:36]} 18. Qe2 {[%emt 0:00:36]} O-O {[%emt 0:02:23]} 19. Qa6 {[%emt 0:00:25]} Rfe8 {[%emt 0:02:41]} 20. Qxa7 {[%emt 0:00:48]} Qxa7 {[%emt 0:00:21]} 21. Bxa7 {[%emt 0:00:23]} e5 {[%emt 0:00:20]} 22. Nb3 {[%emt 0:00:21]} Bd3 {[%emt 0:00:21]} 23. Rfe1 {[%emt 0:00:33]} Ng6 {[%emt 0:00:26]} 24. Nc5 {[%emt 0:00:42]} Bc4 {[%emt 0:00:22]} 25. f3 {[%emt 0:04:16]} Nf4 {[%emt 0:00:42]} 26. Kf2 {[%emt 0:00:28]} Ra8 {[%emt 0:00:53]} 27. Bb6 {[%emt 0:00:24]} f6 {[%emt 0:00:26]} 28. g3 {[%emt 0:00:51]} Nd3+ {[%emt 0:00:28]} 29. Nxd3 {[%emt 0:00:21]} Bxd3 {[%emt 0:00:20]} 30. f4 {[%emt 0:00:45]} Kf7 {[%emt 0:00:31]} 31. Bc7 {[%emt 0:00:42]} exf4 {[%emt 0:03:12]} 32. Bxf4 {[%emt 0:00:27]} Rxe1 {[%emt 0:00:35]} 33. Kxe1 {[%emt 0:00:21]} Bb5 {[%emt 0:00:21]} 34. a5 {[%emt 0:00:21]} Re8+ {[%emt 0:00:29]} 35. Kf2 {[%emt 0:00:41]} Ba6 {[%emt 0:00:22]} 36. Be3 {[%emt 0:00:33]} Re4 {[%emt 0:00:27]} 37. h4 {[%emt 0:00:34]} h5 {[%emt 0:00:21]} 38. Kf3 {[%emt 0:00:28]} Ke6 {[%emt 0:00:23]} 39. Re1 {[%emt 0:00:40]} Kf5 {[%emt 0:00:29]} 40. Bf2 {[%emt 0:00:28]} Rxe1 {[%emt 0:00:59]} 41. Bxe1 {[%emt 0:30:23]} g5 {[%emt 0:30:33]} 42. Bf2 {[%emt 0:00:21]} Ke6 {[%emt 0:00:30]} 43. Bb6 {[%emt 0:00:29]} Kd7 {[%emt 0:00:24]} 44. Ke3 {[%emt 0:00:24]} gxh4 {[%emt 0:00:22]} 45. gxh4 {[%emt 0:00:21]} Kc8 {[%emt 0:00:21]} 46. Kd4 {[%emt 0:01:01]} Kb7 {[%emt 0:00:24]} 47. Bd8 {[%emt 0:00:23]} f5 {[%emt 0:00:21]} 48. Bg5 {[%emt 0:00:21]} Be2 {[%emt 0:00:22]} 49. Kc5 {[%emt 0:00:21]} Bb5 {[%emt 0:00:22]} 50. Bf4 {[%emt 0:00:22]} Bc4 {[%emt 0:00:22]} 51. Kd6 {[%emt 0:00:22]} Bb5 {[%emt 0:00:21]} 52. Ke6 {[%emt 0:00:22]} Bd3 {[%emt 0:00:25]} 53. Kf6 {[%emt 0:00:21]} Ka6 {[%emt 0:00:21]} 54. Kg5 {[%emt 0:00:21]} Be2 {[%emt 0:00:21]} 55. Kxf5 {[%emt 0:00:21]} Kb7 {[%emt 0:00:21]} 56. Ke5 {[%emt 0:00:21]} Ka6 {[%emt 0:00:22]} 57. Kd6 {[%emt 0:00:21]} Kb7 {[%emt 0:00:20]} 58. Kc5 {[%emt 0:00:22]} Ba6 {[%emt 0:00:22]} 59. Bg5 {[%emt 0:00:24]} Bc4 {[%emt 0:00:21]} 60. Be3 {[%emt 0:00:21]} Ba6 {[%emt 0:00:20]} 61. Bd4 {[%emt 0:00:20]} Bc4 {[%emt 0:00:21]} 62. Be3 {[%emt 0:00:20]} Ba6 {[%emt 0:00:20]} 63. Bd4 {[%emt 0:00:20]} Bc4 {[%emt 0:00:21]} 64. Be3 {[%emt 0:00:20]} 1/2-1/2

[Event "FTX Road to Miami Prelims 2022"]
[Site "Online"]
[Date "2022.07.04"]
[Round "7.1"]
[White "Duda, Jan-Krzysztof"]
[Black "Niemann, Hans Moke"]
[Result "1-0"]
[ECO "E11"]
[WhiteElo "2750"]
[BlackElo "2688"]
[Annotator "ChessBase"]
[PlyCount "79"]
[EventDate "2022.07.10"]
[EventType "tourn"]
[EventCountry "NET"]
[SourceTitle "playchess.com"]
[Source "ChessBase"]
[SourceQuality "1"]
[TimeControl "40/5400+30:1800+30"]

1. d4 {[%emt 1:15:40]} Nf6 {[%emt 1:15:40]} 2. c4 {[%emt 0:00:22]} e6 {[%emt 0:00:23]} 3. Nf3 {[%emt 0:00:22]} d5 {[%emt 0:00:22]} 4. g3 {[%emt 0:00:21]} Bb4+ {[%emt 0:00:22]} 5. Bd2 {[%emt 0:00:22]} Be7 {[%emt 0:00:20]} 6. Bg2 {[%emt 0:00:21]} O-O {[%emt 0:00:22]} 7. O-O {[%emt 0:00:22]} Nbd7 {[%emt 0:00:20]} 8. Qb3 {[%emt 0:00:29]} a5 {[%emt 0:00:23]} 9. Nc3 {[%emt 0:00:40]} c6 {[%emt 0:01:07]} 10. a4 {[%emt 0:01:39]} Nb6 {[%emt 0:00:38]} 11. cxd5 {[%emt 0:02:27]} exd5 {[%emt 0:00:32]} 12. Ne5 {[%emt 0:00:21]} Ng4 {[%emt 0:00:46]} 13. Nd3 {[%emt 0:00:42]} Nc4 {[%emt 0:00:21]} 14. Bf4 {[%emt 0:00:39]} Bg5 {[%emt 0:01:23]} 15. Rad1 {[%emt 0:00:32]} Nd6 {[%emt 0:00:35]} 16. Bxd6 {[%emt 0:01:06]} Qxd6 {[%emt 0:00:24]} 17. e4 {[%emt 0:00:52]} Qh6 {[%emt 0:01:47]} 18. h3 {[%emt 0:00:48]} dxe4 {[%emt 0:00:28]} 19. Nxe4 {[%emt 0:00:31]} Nf6 {[%emt 0:00:23]} 20. Nxg5 {[%emt 0:00:43]} Qxg5 {[%emt 0:00:20]} 21. Rfe1 {[%emt 0:02:32]} Nd5 {[%emt 0:00:36]} 22. Re5 {[%emt 0:01:48]} Qd8 {[%emt 0:00:33]} 23. Bxd5 {[%emt 0:00:29]} cxd5 {[%emt 0:00:23]} 24. Nf4 {[%emt 0:00:21]} g5 {[%emt 0:01:10]} 25. Nxd5 {[%emt 0:01:28]} Be6 {[%emt 0:01:34]} 26. Qf3 {[%emt 0:00:55]} Kg7 {[%emt 0:00:24]} 27. Nc7 {[%emt 0:00:23]} Rc8 {[%emt 0:01:00]} 28. Nxe6+ {[%emt 0:00:44]} fxe6 {[%emt 0:00:21]} 29. Qe3 {[%emt 0:01:39]} Rc2 {[%emt 0:00:36]} 30. Rxg5+ {[%emt 0:00:24]} Kh8 {[%emt 0:00:21]} 31. Rd2 {[%emt 0:00:37]} Rxd2 {[%emt 0:00:57]} 32. Qxd2 {[%emt 0:00:20]} b6 {[%emt 0:00:24]} 33. Qe3 {[%emt 0:00:27]} Qf6 {[%emt 0:00:25]} 34. Re5 {[%emt 0:00:22]} Qg6 {[%emt 0:00:29]} 35. Kg2 {[%emt 0:00:39]} Qc2 {[%emt 0:00:26]} 36. b3 {[%emt 0:00:32]} Qc6+ {[%emt 0:00:32]} 37. Qe4 {[%emt 0:00:22]} Qc3 {[%emt 0:00:49]} 38. Rxe6 {[%emt 0:01:07]} Qxb3 {[%emt 0:00:22]} 39. Re7 {[%emt 0:00:22]} Rf7 {[%emt 0:00:29]} 40. Qe5+ {[%emt 0:00:22]} 1-0

[Event "FTX Road to Miami Prelims 2022"]
[Site "Online"]
[Date "2022.07.04"]
[Round "7.2"]
[White "Mamedyarov, Shakhriyar"]
[Black "Dominguez Perez, Leinier"]
[Result "1/2-1/2"]
[ECO "D20"]
[WhiteElo "2759"]
[BlackElo "2754"]
[Annotator "ChessBase"]
[PlyCount "67"]
[EventDate "2022.07.10"]
[EventType "tourn"]
[EventCountry "NET"]
[SourceTitle "playchess.com"]
[Source "ChessBase"]
[SourceQuality "1"]
[TimeControl "40/5400+30:1800+30"]

1. d4 {[%emt 1:15:40]} d5 {[%emt 1:15:40]} 2. c4 {[%emt 0:00:22]} dxc4 {[%emt 0:00:21]} 3. e4 {[%emt 0:00:24]} b5 {[%emt 0:00:22]} 4. a4 {[%emt 0:00:23]} c6 {[%emt 0:00:21]} 5. axb5 {[%emt 0:00:23]} cxb5 {[%emt 0:00:21]} 6. Nc3 {[%emt 0:00:21]} Qb6 {[%emt 0:00:21]} 7. Nf3 {[%emt 0:00:24]} e6 {[%emt 0:00:34]} 8. Be3 {[%emt 0:00:26]} Nf6 {[%emt 0:00:26]} 9. d5 {[%emt 0:00:36]} Bc5 {[%emt 0:00:40]} 10. Bxc5 {[%emt 0:00:23]} Qxc5 {[%emt 0:00:20]} 11. Qd4 {[%emt 0:00:21]} Qb4 {[%emt 0:00:32]} 12. Be2 {[%emt 0:00:32]} O-O {[%emt 0:00:23]} 13. O-O {[%emt 0:00:23]} a6 {[%emt 0:00:34]} 14. b3 {[%emt 0:00:42]} exd5 {[%emt 0:00:40]} 15. Nxd5 {[%emt 0:02:32]} Nxd5 {[%emt 0:00:23]} 16. Qxd5 {[%emt 0:00:20]} Ra7 {[%emt 0:00:24]} 17. bxc4 {[%emt 0:00:21]} Rd7 {[%emt 0:00:30]} 18. Qg5 {[%emt 0:01:38]} Bb7 {[%emt 0:00:54]} 19. cxb5 {[%emt 0:00:56]} Qxe4 {[%emt 0:09:08]} 20. Rfe1 {[%emt 0:00:23]} Rd5 {[%emt 0:00:21]} 21. Qg3 {[%emt 0:00:45]} axb5 {[%emt 0:00:43]} 22. Bxb5 {[%emt 0:00:29]} Qg6 {[%emt 0:01:14]} 23. Bc4 {[%emt 0:00:41]} Qxg3 {[%emt 0:00:37]} 24. hxg3 {[%emt 0:00:20]} Rc5 {[%emt 0:00:35]} 25. Ne5 {[%emt 0:00:35]} Bd5 {[%emt 0:00:35]} 26. Bxd5 {[%emt 0:00:21]} Rxd5 {[%emt 0:00:21]} 27. Rad1 {[%emt 0:00:21]} Rxd1 {[%emt 0:00:31]} 28. Rxd1 {[%emt 0:00:20]} f6 {[%emt 0:01:06]} 29. Nd7 {[%emt 0:00:25]} Nxd7 {[%emt 0:00:22]} 30. Rxd7 {[%emt 0:00:20]} Rf7 {[%emt 0:00:23]} 31. Rd8+ {[%emt 0:00:22]} Rf8 {[%emt 0:00:21]} 32. Rd7 {[%emt 0:00:21]} Rf7 {[%emt 0:00:21]} 33. Rd8+ {[%emt 0:00:20]} Rf8 {[%emt 0:00:20]} 34. Rd7 {[%emt 0:00:21]} 1/2-1/2